[Event "Titled Tuesday Blitz October 11 Late 2022"]
[White "Maksimovic, Bojan"]
[Black "Hardaway, Brewington"]
[WhiteFideId "14408120"]
[BlackFideId "30941849"]
[WhiteElo "2447"]
[BlackElo "2159"]
[Result "1/2-1/2"]
[Round "02"]
[TimeControl "180+1"]
[Date "2022.10.11"]
[WhiteClock "0:00:03"]
[BlackClock "0:00:06"]

1. e4 {[%clk 0:03:00]}  e5 {[%clk 0:02:58]} 2. Nf3 {[%clk 0:03:01]}  Nf6 {[%clk 0:02:56]} 3. Nxe5 {[%clk 0:03:01]}  d6 {[%clk 0:02:57]} 4. Nf3 {[%clk 0:03:01]}  Nxe4 {[%clk 0:02:58]} 5. d4 {[%clk 0:03:02]}  d5 {[%clk 0:02:58]} 6. Bd3 {[%clk 0:03:02]}  Bd6 {[%clk 0:02:59]} 7. O-O {[%clk 0:03:03]}  O-O {[%clk 0:02:59]} 8. c4 {[%clk 0:03:03]}  c6 {[%clk 0:03:00]} 9. Nc3 {[%clk 0:03:04]}  Nxc3 {[%clk 0:03:00]} 10. bxc3 {[%clk 0:03:05]}  dxc4 {[%clk 0:03:00]} 11. Bxc4 {[%clk 0:03:06]}  Bf5 {[%clk 0:02:59]} 12. Bg5 {[%clk 0:03:05]}  Qa5 {[%clk 0:02:58]} 13. Nh4 {[%clk 0:03:04]}  Be6 {[%clk 0:02:57]} 14. Bxe6 {[%clk 0:03:05]}  Qxg5 {[%clk 0:02:56]} 15. Nf3 {[%clk 0:03:05]}  Qa5 {[%clk 0:02:53]} 16. Bb3 {[%clk 0:03:05]}  Nd7 {[%clk 0:02:53]} 17. Qd3 {[%clk 0:03:05]}  h6 {[%clk 0:02:42]} 18. Rfe1 {[%clk 0:02:59]}  Nf6 {[%clk 0:02:39]} 19. g3 {[%clk 0:02:46]}  Rae8 {[%clk 0:02:25]} 20. Kg2 {[%clk 0:02:42]}  Qc7 {[%clk 0:02:17]} 21. h4 {[%clk 0:02:40]}  a6 {[%clk 0:01:53]} 22. Rad1 {[%clk 0:02:37]}  b5 {[%clk 0:01:51]} 23. c4 {[%clk 0:02:29]}  Bb4 {[%clk 0:01:50]} 24. Rxe8 {[%clk 0:02:26]}  Rxe8 {[%clk 0:01:49]} 25. c5 {[%clk 0:02:26]}  a5 {[%clk 0:01:44]} 26. Ne5 {[%clk 0:02:23]}  Re7 {[%clk 0:01:41]} 27. Qf3 {[%clk 0:02:13]}  a4 {[%clk 0:01:34]} 28. Bc2 {[%clk 0:02:03]}  Nd5 {[%clk 0:01:03]} 29. Be4 {[%clk 0:01:53]}  Nc3 {[%clk 0:01:00]} 30. Re1 {[%clk 0:01:22]}  Nxe4 {[%clk 0:00:54]} 31. Rxe4 {[%clk 0:01:22]}  Bxc5 {[%clk 0:00:42]} 32. dxc5 {[%clk 0:01:14]}  Rxe5 {[%clk 0:00:42]} 33. Rxe5 {[%clk 0:01:15]}  Qxe5 {[%clk 0:00:43]} 34. Qxc6 {[%clk 0:01:16]}  b4 {[%clk 0:00:41]} 35. Qxa4 {[%clk 0:01:16]}  Qxc5 {[%clk 0:00:40]} 36. Qe8+ {[%clk 0:01:16]}  Kh7 {[%clk 0:00:31]} 37. Qxf7 {[%clk 0:01:16]}  Qc6+ {[%clk 0:00:31]} 38. Kh2 {[%clk 0:01:15]}  Qc2 {[%clk 0:00:31]} 39. h5 {[%clk 0:01:08]}  Qc5 {[%clk 0:00:31]} 40. Qf3 {[%clk 0:01:00]}  Kg8 {[%clk 0:00:30]} 41. g4 {[%clk 0:00:54]}  Qe5+ {[%clk 0:00:20]} 42. Kg2 {[%clk 0:00:53]}  Qc5 {[%clk 0:00:18]} 43. Qa8+ {[%clk 0:00:51]}  Kh7 {[%clk 0:00:18]} 44. Qe4+ {[%clk 0:00:52]}  Kg8 {[%clk 0:00:18]} 45. Qe6+ {[%clk 0:00:49]}  Kh8 {[%clk 0:00:18]} 46. f3 {[%clk 0:00:32]}  Qc2+ {[%clk 0:00:18]} 47. Kg3 {[%clk 0:00:32]}  Qc7+ {[%clk 0:00:18]} 48. Kh3 {[%clk 0:00:32]}  Qc3 {[%clk 0:00:17]} 49. Qe8+ {[%clk 0:00:29]}  Kh7 {[%clk 0:00:18]} 50. Qe4+ {[%clk 0:00:30]}  Kh8 {[%clk 0:00:18]} 51. Qd5 {[%clk 0:00:27]}  Kh7 {[%clk 0:00:17]} 52. Kg3 {[%clk 0:00:26]}  Kh8 {[%clk 0:00:18]} 53. Kf4 {[%clk 0:00:26]}  Qc1+ {[%clk 0:00:18]} 54. Kf5 {[%clk 0:00:25]}  Qc2+ {[%clk 0:00:18]} 55. Ke6 {[%clk 0:00:25]}  Qc8+ {[%clk 0:00:18]} 56. Ke7 {[%clk 0:00:24]}  Qc7+ {[%clk 0:00:17]} 57. Ke8 {[%clk 0:00:22]}  Qc8+ {[%clk 0:00:15]} 58. Qd8 {[%clk 0:00:21]}  Qe6+ {[%clk 0:00:11]} 59. Kf8 {[%clk 0:00:17]}  Qxa2 {[%clk 0:00:01]} 60. Qd4 {[%clk 0:00:06]}  Qg8+ {[%clk 0:00:02]} 61. Ke7 {[%clk 0:00:06]}  Qb8 {[%clk 0:00:03]} 62. Qb2 {[%clk 0:00:02]}  Qb7+ {[%clk 0:00:03]} 63. Kf8 {[%clk 0:00:02]}  Qc8+ {[%clk 0:00:03]} 64. Kf7 {[%clk 0:00:03]}  Qd7+ {[%clk 0:00:04]} 65. Kf8 {[%clk 0:00:03]}  Qd8+ {[%clk 0:00:04]} 66. Kf7 {[%clk 0:00:03]}  Qd7+ {[%clk 0:00:05]} 67. Kf8 {[%clk 0:00:03]}  Qd8+ {[%clk 0:00:05]} 68. Kf7 {[%clk 0:00:03]}  Qd7+ {[%clk 0:00:06]} 1/2-1/2


[Site "https://www.chess.com"]

[Event "Titled Tuesday Blitz October 11 Late 2022"]
[White "Mamedov, Rauf"]
[Black "Nasuta, Grzegorz"]
[WhiteFideId "13401653"]
[BlackFideId "1141686"]
[WhiteElo "2650"]
[BlackElo "2442"]
[Result "1/2-1/2"]
[Round "02"]
[TimeControl "180+1"]
[Date "2022.10.11"]
[WhiteClock "0:00:13"]
[BlackClock "0:00:06"]

1. e4 {[%clk 0:02:59]}  e5 {[%clk 0:02:59]} 2. Nf3 {[%clk 0:02:59]}  Nc6 {[%clk 0:03:00]} 3. Bb5 {[%clk 0:02:59]}  a6 {[%clk 0:02:59]} 4. Ba4 {[%clk 0:02:59]}  Nf6 {[%clk 0:02:59]} 5. Qe2 {[%clk 0:02:59]}  b5 {[%clk 0:02:58]} 6. Bb3 {[%clk 0:03:00]}  Bc5 {[%clk 0:02:59]} 7. c3 {[%clk 0:03:00]}  O-O {[%clk 0:02:57]} 8. d3 {[%clk 0:03:00]}  d6 {[%clk 0:02:44]} 9. h3 {[%clk 0:03:00]}  Be6 {[%clk 0:02:43]} 10. Nbd2 {[%clk 0:03:00]}  Bb6 {[%clk 0:02:42]} 11. Nf1 {[%clk 0:03:00]}  Ne7 {[%clk 0:02:10]} 12. g4 {[%clk 0:02:53]}  Ng6 {[%clk 0:02:08]} 13. Ng3 {[%clk 0:02:48]}  d5 {[%clk 0:02:00]} 14. Bg5 {[%clk 0:02:45]}  Nf4 {[%clk 0:01:41]} 15. Bxf4 {[%clk 0:02:39]}  exf4 {[%clk 0:01:42]} 16. Nf5 {[%clk 0:02:32]}  dxe4 {[%clk 0:01:41]} 17. dxe4 {[%clk 0:02:32]}  Bxb3 {[%clk 0:01:41]} 18. axb3 {[%clk 0:02:33]}  Nxe4 {[%clk 0:01:24]} 19. Qxe4 {[%clk 0:02:33]}  Re8 {[%clk 0:01:24]} 20. Ne5 {[%clk 0:02:33]}  Qf6 {[%clk 0:01:25]} 21. Qxf4 {[%clk 0:01:28]}  Qxe5+ {[%clk 0:00:48]} 22. Qxe5 {[%clk 0:01:28]}  Rxe5+ {[%clk 0:00:49]} 23. Kf1 {[%clk 0:01:28]}  Rae8 {[%clk 0:00:49]} 24. Ng3 {[%clk 0:01:18]}  g6 {[%clk 0:00:39]} 25. Kg2 {[%clk 0:01:11]}  Rd5 {[%clk 0:00:36]} 26. Rhd1 {[%clk 0:01:11]}  Red8 {[%clk 0:00:36]} 27. Rxd5 {[%clk 0:01:10]}  Rxd5 {[%clk 0:00:37]} 28. Ne4 {[%clk 0:01:11]}  Re5 {[%clk 0:00:27]} 29. Kf3 {[%clk 0:01:09]}  f5 {[%clk 0:00:20]} 30. Nf6+ {[%clk 0:01:06]}  Kg7 {[%clk 0:00:19]} 31. Nd7 {[%clk 0:01:06]}  fxg4+ {[%clk 0:00:18]} 32. hxg4 {[%clk 0:01:07]}  Rd5 {[%clk 0:00:10]} 33. Nxb6 {[%clk 0:01:07]}  cxb6 {[%clk 0:00:10]} 34. Rxa6 {[%clk 0:01:07]}  b4 {[%clk 0:00:07]} 35. cxb4 {[%clk 0:01:01]}  Rd3+ {[%clk 0:00:07]} 36. Ke4 {[%clk 0:01:00]}  Rxb3 {[%clk 0:00:08]} 37. Rxb6 {[%clk 0:01:01]}  Rxb2 {[%clk 0:00:09]} 38. f4 {[%clk 0:01:01]}  h5 {[%clk 0:00:09]} 39. Rb7+ {[%clk 0:01:00]}  Kf6 {[%clk 0:00:09]} 40. g5+ {[%clk 0:01:00]}  Ke6 {[%clk 0:00:09]} 41. Rb6+ {[%clk 0:00:54]}  Kf7 {[%clk 0:00:09]} 42. Kd5 {[%clk 0:00:46]}  h4 {[%clk 0:00:09]} 43. Rb7+ {[%clk 0:00:46]}  Kg8 {[%clk 0:00:09]} 44. Ke6 {[%clk 0:00:41]}  Rd2 {[%clk 0:00:08]} 45. Ra7 {[%clk 0:00:35]}  h3 {[%clk 0:00:08]} 46. Ra3 {[%clk 0:00:34]}  h2 {[%clk 0:00:08]} 47. Rh3 {[%clk 0:00:35]}  Kg7 {[%clk 0:00:05]} 48. b5 {[%clk 0:00:26]}  Rb2 {[%clk 0:00:05]} 49. Rh4 {[%clk 0:00:23]}  Rxb5 {[%clk 0:00:02]} 50. Rxh2 {[%clk 0:00:23]}  Rf5 {[%clk 0:00:02]} 51. Rf2 {[%clk 0:00:23]}  Kg8 {[%clk 0:00:02]} 52. Rf3 {[%clk 0:00:20]}  Kg7 {[%clk 0:00:02]} 53. Kd7 {[%clk 0:00:17]}  Kg8 {[%clk 0:00:02]} 54. Kd6 {[%clk 0:00:18]}  Kg7 {[%clk 0:00:03]} 55. Re3 {[%clk 0:00:17]}  Rxf4 {[%clk 0:00:03]} 56. Re7+ {[%clk 0:00:18]}  Kg8 {[%clk 0:00:02]} 57. Re5 {[%clk 0:00:19]}  Kg7 {[%clk 0:00:02]} 58. Ke6 {[%clk 0:00:17]}  Kg8 {[%clk 0:00:02]} 59. Rd5 {[%clk 0:00:17]}  Kg7 {[%clk 0:00:02]} 60. Rd8 {[%clk 0:00:17]}  Rf3 {[%clk 0:00:02]} 61. Rd7+ {[%clk 0:00:17]}  Kg8 {[%clk 0:00:02]} 62. Re7 {[%clk 0:00:17]}  Rf4 {[%clk 0:00:02]} 63. Ra7 {[%clk 0:00:17]}  Rf5 {[%clk 0:00:01]} 64. Rb7 {[%clk 0:00:10]}  Rxg5 {[%clk 0:00:01]} 65. Kf6 {[%clk 0:00:11]}  Rg1 {[%clk 0:00:02]} 66. Rb2 {[%clk 0:00:09]}  Rf1+ {[%clk 0:00:01]} 67. Kg5 {[%clk 0:00:10]}  Rg1+ {[%clk 0:00:02]} 68. Kh6 {[%clk 0:00:10]}  Rh1+ {[%clk 0:00:02]} 69. Kg5 {[%clk 0:00:10]}  Rg1+ {[%clk 0:00:03]} 70. Kf6 {[%clk 0:00:11]}  Rf1+ {[%clk 0:00:04]} 71. Kxg6 {[%clk 0:00:12]}  Rg1+ {[%clk 0:00:04]} 72. Kf5 {[%clk 0:00:11]}  Rf1+ {[%clk 0:00:05]} 73. Kg4 {[%clk 0:00:12]}  Rg1+ {[%clk 0:00:05]} 74. Kf3 {[%clk 0:00:13]}  Rf1+ {[%clk 0:00:06]} 75. Rf2 {[%clk 0:00:13]}  Rxf2+ {[%clk 0:00:06]} 76. Kxf2 {[%clk 0:00:13]} 1/2-1/2


[Site "https://www.chess.com"]

[Event "Titled Tuesday Blitz October 11 Late 2022"]
[White "Martin Carmona, Gaston Manuel"]
[Black "Torres Boch, Jose Francisco"]
[WhiteFideId "22284567"]
[BlackFideId "2278383"]
[WhiteElo "2235"]
[BlackElo "2073"]
[Result "0-1"]
[Round "02"]
[TimeControl "180+1"]
[Date "2022.10.12"]
[WhiteClock "0:01:08"]
[BlackClock "0:01:04"]

1. d4 {[%clk 0:02:54]}  Nf6 {[%clk 0:02:54]} 2. c4 {[%clk 0:02:48]}  e6 {[%clk 0:02:52]} 3. Nc3 {[%clk 0:02:48]}  Bb4 {[%clk 0:02:52]} 4. e3 {[%clk 0:02:49]}  O-O {[%clk 0:02:51]} 5. Bd3 {[%clk 0:02:48]}  c5 {[%clk 0:02:46]} 6. Nf3 {[%clk 0:02:49]}  cxd4 {[%clk 0:02:45]} 7. exd4 {[%clk 0:02:50]}  d5 {[%clk 0:02:45]} 8. O-O {[%clk 0:02:51]}  dxc4 {[%clk 0:02:44]} 9. Bxc4 {[%clk 0:02:52]}  b6 {[%clk 0:02:44]} 10. Bg5 {[%clk 0:02:50]}  Bb7 {[%clk 0:02:43]} 11. Re1 {[%clk 0:02:42]}  h6 {[%clk 0:02:42]} 12. Bh4 {[%clk 0:02:42]}  Nbd7 {[%clk 0:02:41]} 13. Rc1 {[%clk 0:02:42]}  Rc8 {[%clk 0:02:40]} 14. Bb3 {[%clk 0:02:37]}  Qc7 {[%clk 0:02:40]} 15. Bg3 {[%clk 0:02:21]}  Qd8 {[%clk 0:02:37]} 16. Qd3 {[%clk 0:02:19]}  Nc5 {[%clk 0:02:31]} 17. Qd1 {[%clk 0:02:06]}  Nxb3 {[%clk 0:02:31]} 18. Qxb3 {[%clk 0:02:07]}  Be7 {[%clk 0:02:12]} 19. Ne5 {[%clk 0:02:05]}  Qxd4 {[%clk 0:02:05]} 20. Rcd1 {[%clk 0:02:02]}  Qb4 {[%clk 0:01:56]} 21. Nd7 {[%clk 0:01:53]}  Qxb3 {[%clk 0:01:52]} 22. axb3 {[%clk 0:01:54]}  Rfd8 {[%clk 0:01:51]} 23. Ne5 {[%clk 0:01:51]}  Rxd1 {[%clk 0:01:48]} 24. Rxd1 {[%clk 0:01:52]}  Rd8 {[%clk 0:01:48]} 25. Rxd8+ {[%clk 0:01:51]}  Bxd8 {[%clk 0:01:48]} 26. Nc4 {[%clk 0:01:51]}  Ne4 {[%clk 0:01:46]} 27. Nxe4 {[%clk 0:01:50]}  Bxe4 {[%clk 0:01:46]} 28. Bb8 {[%clk 0:01:51]}  a6 {[%clk 0:01:44]} 29. Ba7 {[%clk 0:01:44]}  b5 {[%clk 0:01:42]} 30. Ne3 {[%clk 0:01:45]}  Bf6 {[%clk 0:01:39]} 31. f3 {[%clk 0:01:38]}  Bd3 {[%clk 0:01:30]} 32. Kf2 {[%clk 0:01:36]}  Bxb2 {[%clk 0:01:30]} 33. Bb6 {[%clk 0:01:32]}  Bc3 {[%clk 0:01:20]} 34. Nd1 {[%clk 0:01:31]}  Bb4 {[%clk 0:01:18]} 35. Ke3 {[%clk 0:01:29]}  Bc2 {[%clk 0:01:18]} 36. Nf2 {[%clk 0:01:27]}  Bxb3 {[%clk 0:01:18]} 37. Ne4 {[%clk 0:01:24]}  a5 {[%clk 0:01:16]} 38. Nc5 {[%clk 0:01:23]}  Bc4 {[%clk 0:01:11]} 39. Nb7 {[%clk 0:01:21]}  a4 {[%clk 0:01:10]} 40. Na5 {[%clk 0:01:11]}  Bd5 {[%clk 0:01:07]} 41. Kd3 {[%clk 0:01:08]}  a3 {[%clk 0:01:04]} 42. Kc2 {[%clk 0:01:08]}  a2 {[%clk 0:01:04]} 0-1


[Site "https://www.chess.com"]

[Event "Titled Tuesday Blitz October 11 Late 2022"]
[White "Melikhov, Evgeny V."]
[Black "Aung Thant Zin"]
[WhiteFideId "4122046"]
[BlackFideId "13000063"]
[WhiteElo "2169"]
[BlackElo "2278"]
[Result "1-0"]
[Round "02"]
[TimeControl "180+1"]
[Date "2022.10.12"]
[WhiteClock "0:00:07"]
[BlackClock "0:00:22"]

1. d4 {[%clk 0:03:00]}  Nf6 {[%clk 0:02:58]} 2. Bg5 {[%clk 0:02:57]}  Ne4 {[%clk 0:02:57]} 3. Bh4 {[%clk 0:02:55]}  d5 {[%clk 0:02:58]} 4. f3 {[%clk 0:02:53]}  Nf6 {[%clk 0:02:57]} 5. Bxf6 {[%clk 0:02:51]}  exf6 {[%clk 0:02:57]} 6. e3 {[%clk 0:02:48]}  Bd6 {[%clk 0:02:56]} 7. Bd3 {[%clk 0:02:44]}  c6 {[%clk 0:02:56]} 8. Nd2 {[%clk 0:02:39]}  O-O {[%clk 0:02:55]} 9. Qe2 {[%clk 0:02:26]}  Re8 {[%clk 0:02:54]} 10. O-O-O {[%clk 0:02:23]}  Nd7 {[%clk 0:02:43]} 11. Qf2 {[%clk 0:02:19]}  Nf8 {[%clk 0:02:41]} 12. Ne2 {[%clk 0:02:17]}  Qc7 {[%clk 0:02:35]} 13. Kb1 {[%clk 0:02:10]}  a5 {[%clk 0:02:34]} 14. c4 {[%clk 0:02:06]}  dxc4 {[%clk 0:02:17]} 15. Nxc4 {[%clk 0:02:05]}  Be7 {[%clk 0:02:15]} 16. e4 {[%clk 0:01:56]}  b5 {[%clk 0:02:14]} 17. Ne3 {[%clk 0:01:56]}  Qb6 {[%clk 0:01:58]} 18. Rc1 {[%clk 0:01:54]}  Be6 {[%clk 0:01:53]} 19. Rhd1 {[%clk 0:01:18]}  Red8 {[%clk 0:01:49]} 20. g4 {[%clk 0:01:03]}  a4 {[%clk 0:01:19]} 21. Nf5 {[%clk 0:01:01]}  Bxf5 {[%clk 0:01:13]} 22. gxf5 {[%clk 0:01:01]}  c5 {[%clk 0:01:04]} 23. dxc5 {[%clk 0:00:54]}  Qc7 {[%clk 0:00:59]} 24. c6 {[%clk 0:00:40]}  a3 {[%clk 0:00:58]} 25. Bxb5 {[%clk 0:00:27]}  axb2 {[%clk 0:00:58]} 26. Kxb2 {[%clk 0:00:18]}  Rdb8 {[%clk 0:00:55]} 27. Nc3 {[%clk 0:00:17]}  Ba3+ {[%clk 0:00:50]} 28. Ka1 {[%clk 0:00:14]}  Bb4 {[%clk 0:00:37]} 29. Qd4 {[%clk 0:00:12]}  Bxc3+ {[%clk 0:00:33]} 30. Rxc3 {[%clk 0:00:11]}  Rxb5 {[%clk 0:00:33]} 31. Qd6 {[%clk 0:00:11]}  Qa5 {[%clk 0:00:30]} 32. Rc2 {[%clk 0:00:08]}  Rc8 {[%clk 0:00:27]} 33. c7 {[%clk 0:00:06]}  Rb7 {[%clk 0:00:25]} 34. Rdc1 {[%clk 0:00:05]}  Qe5+ {[%clk 0:00:22]} 35. Qxe5 {[%clk 0:00:05]}  fxe5 {[%clk 0:00:23]} 36. a4 {[%clk 0:00:05]}  Nd7 {[%clk 0:00:22]} 37. Ka2 {[%clk 0:00:04]}  Nb6 {[%clk 0:00:22]} 38. Ka3 {[%clk 0:00:04]}  Na8 {[%clk 0:00:22]} 39. a5 {[%clk 0:00:04]}  Rcxc7 {[%clk 0:00:21]} 40. Rxc7 {[%clk 0:00:04]}  Rxc7 {[%clk 0:00:21]} 41. Rxc7 {[%clk 0:00:04]}  Nxc7 {[%clk 0:00:22]} 42. Kb4 {[%clk 0:00:05]}  Kf8 {[%clk 0:00:22]} 43. Kc5 {[%clk 0:00:05]}  Ke8 {[%clk 0:00:22]} 44. Kd6 {[%clk 0:00:05]}  f6 {[%clk 0:00:22]} 45. Kxc7 {[%clk 0:00:05]}  Ke7 {[%clk 0:00:22]} 46. a6 {[%clk 0:00:05]}  g6 {[%clk 0:00:20]} 47. a7 {[%clk 0:00:06]}  gxf5 {[%clk 0:00:18]} 48. a8=Q {[%clk 0:00:06]}  fxe4 {[%clk 0:00:17]} 49. fxe4 {[%clk 0:00:07]}  Kf7 {[%clk 0:00:18]} 50. Kd7 {[%clk 0:00:06]}  Kg6 {[%clk 0:00:19]} 51. Ke6 {[%clk 0:00:06]}  Kg5 {[%clk 0:00:19]} 52. Qf8 {[%clk 0:00:06]}  Kf4 {[%clk 0:00:20]} 53. Qxf6+ {[%clk 0:00:06]}  Kxe4 {[%clk 0:00:21]} 54. Qxe5+ {[%clk 0:00:07]}  Kf3 {[%clk 0:00:22]} 55. Qh5+ {[%clk 0:00:07]} 1-0


[Site "https://www.chess.com"]

[Event "Titled Tuesday Blitz October 11 Late 2022"]
[White "Naroditsky, Daniel"]
[Black "Levitskiy, Andrey"]
[WhiteFideId "2026961"]
[BlackFideId "14132885"]
[WhiteElo "2628"]
[BlackElo "2318"]
[Result "1-0"]
[Round "02"]
[TimeControl "180+1"]
[Date "2022.10.11"]
[WhiteClock "0:00:05"]
[BlackClock "0:00:05"]

1. e4 {[%clk 0:02:59]}  c5 {[%clk 0:02:57]} 2. Nf3 {[%clk 0:03:00]}  d6 {[%clk 0:02:57]} 3. Bb5+ {[%clk 0:03:00]}  Nc6 {[%clk 0:02:57]} 4. O-O {[%clk 0:03:00]}  Bd7 {[%clk 0:02:57]} 5. Re1 {[%clk 0:03:00]}  Nf6 {[%clk 0:02:58]} 6. c3 {[%clk 0:02:57]}  a6 {[%clk 0:02:58]} 7. Bf1 {[%clk 0:02:58]}  Bg4 {[%clk 0:02:58]} 8. h3 {[%clk 0:02:59]}  Bxf3 {[%clk 0:02:58]} 9. Qxf3 {[%clk 0:03:00]}  e6 {[%clk 0:02:58]} 10. d3 {[%clk 0:02:51]}  Be7 {[%clk 0:02:58]} 11. Nd2 {[%clk 0:02:51]}  O-O {[%clk 0:02:58]} 12. Qd1 {[%clk 0:02:52]}  b5 {[%clk 0:02:57]} 13. Nf3 {[%clk 0:02:51]}  d5 {[%clk 0:02:53]} 14. e5 {[%clk 0:02:28]}  Nd7 {[%clk 0:02:52]} 15. d4 {[%clk 0:02:29]}  Qb6 {[%clk 0:02:51]} 16. Bd3 {[%clk 0:02:27]}  Rfe8 {[%clk 0:02:42]} 17. a3 {[%clk 0:02:20]}  Nf8 {[%clk 0:02:32]} 18. Be3 {[%clk 0:02:12]}  Rac8 {[%clk 0:02:27]} 19. b4 {[%clk 0:02:01]}  c4 {[%clk 0:01:58]} 20. Bc2 {[%clk 0:01:51]}  a5 {[%clk 0:01:58]} 21. h4 {[%clk 0:01:44]}  Ra8 {[%clk 0:01:55]} 22. Ng5 {[%clk 0:01:31]}  Bxg5 {[%clk 0:01:26]} 23. Bxg5 {[%clk 0:01:29]}  Ne7 {[%clk 0:01:25]} 24. Re3 {[%clk 0:01:25]}  Nf5 {[%clk 0:01:23]} 25. Rf3 {[%clk 0:01:19]}  axb4 {[%clk 0:01:22]} 26. axb4 {[%clk 0:01:18]}  h6 {[%clk 0:01:00]} 27. Bd2 {[%clk 0:01:05]}  Nxh4 {[%clk 0:00:49]} 28. Rh3 {[%clk 0:01:06]}  Nhg6 {[%clk 0:00:45]} 29. f4 {[%clk 0:01:00]}  Rxa1 {[%clk 0:00:34]} 30. Qxa1 {[%clk 0:01:01]}  Re7 {[%clk 0:00:35]} 31. g4 {[%clk 0:00:53]}  Ra7 {[%clk 0:00:34]} 32. Qb1 {[%clk 0:00:53]}  Ne7 {[%clk 0:00:25]} 33. f5 {[%clk 0:00:53]}  Qa6 {[%clk 0:00:18]} 34. f6 {[%clk 0:00:51]}  gxf6 {[%clk 0:00:14]} 35. exf6 {[%clk 0:00:52]}  Neg6 {[%clk 0:00:15]} 36. Qc1 {[%clk 0:00:31]}  Qa1 {[%clk 0:00:14]} 37. Bb1 {[%clk 0:00:32]}  Qa3 {[%clk 0:00:14]} 38. Qc2 {[%clk 0:00:25]}  Qb3 {[%clk 0:00:11]} 39. Qxb3 {[%clk 0:00:17]}  cxb3 {[%clk 0:00:12]} 40. Kf2 {[%clk 0:00:17]}  Ra1 {[%clk 0:00:12]} 41. Rh1 {[%clk 0:00:18]}  Nd7 {[%clk 0:00:12]} 42. g5 {[%clk 0:00:13]}  hxg5 {[%clk 0:00:09]} 43. Bxg5 {[%clk 0:00:14]}  b2 {[%clk 0:00:08]} 44. Ke2 {[%clk 0:00:11]}  Nb6 {[%clk 0:00:08]} 45. Kd2 {[%clk 0:00:12]}  Nc4+ {[%clk 0:00:08]} 46. Kc2 {[%clk 0:00:13]}  e5 {[%clk 0:00:03]} 47. dxe5 {[%clk 0:00:12]}  Ngxe5 {[%clk 0:00:04]} 48. Bh6 {[%clk 0:00:07]}  Ng6 {[%clk 0:00:04]} 49. Bg7 {[%clk 0:00:05]}  Ra7 {[%clk 0:00:03]} 50. Re1 {[%clk 0:00:04]}  Ra8 {[%clk 0:00:03]} 51. Kb3 {[%clk 0:00:04]}  Rc8 {[%clk 0:00:03]} 52. Bd3 {[%clk 0:00:04]}  b1=Q+ {[%clk 0:00:02]} 53. Bxb1 {[%clk 0:00:04]}  Nd2+ {[%clk 0:00:03]} 54. Kb2 {[%clk 0:00:03]}  Ne4 {[%clk 0:00:04]} 55. Bxe4 {[%clk 0:00:03]}  dxe4 {[%clk 0:00:05]} 56. Rxe4 {[%clk 0:00:04]}  Rc6 {[%clk 0:00:04]} 57. Rd4 {[%clk 0:00:04]}  Kh7 {[%clk 0:00:04]} 58. Rd5 {[%clk 0:00:04]}  Nf4 {[%clk 0:00:04]} 59. Rxb5 {[%clk 0:00:03]}  Kg6 {[%clk 0:00:05]} 60. Kb3 {[%clk 0:00:03]}  Ne2 {[%clk 0:00:05]} 61. Rc5 {[%clk 0:00:02]}  Rd6 {[%clk 0:00:04]} 62. Kc4 {[%clk 0:00:02]}  Rd1 {[%clk 0:00:04]} 63. b5 {[%clk 0:00:03]}  Rc1 {[%clk 0:00:05]} 64. Kd3 {[%clk 0:00:03]}  Nf4+ {[%clk 0:00:05]} 65. Kd2 {[%clk 0:00:04]}  Rb1 {[%clk 0:00:05]} 66. c4 {[%clk 0:00:05]}  Ne6 {[%clk 0:00:05]} 67. Rc6 {[%clk 0:00:04]}  Rb3 {[%clk 0:00:05]} 68. Rd6 {[%clk 0:00:02]}  Kf5 {[%clk 0:00:05]} 69. Kc2 {[%clk 0:00:02]}  Rb4 {[%clk 0:00:04]} 70. Kc3 {[%clk 0:00:03]}  Rb1 {[%clk 0:00:05]} 71. Rd5+ {[%clk 0:00:02]}  Ke4 {[%clk 0:00:05]} 72. Rd7 {[%clk 0:00:02]}  Nc5 {[%clk 0:00:04]} 73. Re7+ {[%clk 0:00:02]}  Kf3 {[%clk 0:00:03]} 74. Rxf7 {[%clk 0:00:03]}  Ne4+ {[%clk 0:00:03]} 75. Kd4 {[%clk 0:00:03]}  Rd1+ {[%clk 0:00:04]} 76. Ke5 {[%clk 0:00:04]}  Ng5 {[%clk 0:00:04]} 77. Rc7 {[%clk 0:00:04]}  Re1+ {[%clk 0:00:04]} 78. Kf5 {[%clk 0:00:04]}  Ne6 {[%clk 0:00:04]} 79. Re7 {[%clk 0:00:05]}  Nd4+ {[%clk 0:00:04]} 80. Kg6 {[%clk 0:00:06]}  Rg1+ {[%clk 0:00:04]} 81. Kh7 {[%clk 0:00:07]}  Nf5 {[%clk 0:00:04]} 82. Rd7 {[%clk 0:00:06]}  Rh1+ {[%clk 0:00:05]} 83. Kg6 {[%clk 0:00:05]}  Rc1 {[%clk 0:00:05]} 84. Kxf5 {[%clk 0:00:05]} 1-0


[Site "https://www.chess.com"]

[Event "Titled Tuesday Blitz October 11 Late 2022"]
[White "O`Gorman, Tom"]
[Black "Aguilar, Juan"]
[WhiteFideId "2508249"]
[BlackFideId "3800091"]
[WhiteElo "2271"]
[BlackElo "2371"]
[Result "1-0"]
[Round "02"]
[TimeControl "180+1"]
[Date "2022.10.12"]
[WhiteClock "0:01:19"]
[BlackClock "0:00:01"]

1. e4 {[%clk 0:03:00]}  c5 {[%clk 0:02:59]} 2. Nf3 {[%clk 0:03:00]}  d6 {[%clk 0:03:00]} 3. d4 {[%clk 0:03:00]}  cxd4 {[%clk 0:03:01]} 4. Nxd4 {[%clk 0:03:01]}  Nf6 {[%clk 0:03:01]} 5. Nc3 {[%clk 0:03:01]}  a6 {[%clk 0:03:02]} 6. Bg5 {[%clk 0:03:00]}  e6 {[%clk 0:03:01]} 7. f4 {[%clk 0:03:01]}  h6 {[%clk 0:03:01]} 8. Bh4 {[%clk 0:03:00]}  Be7 {[%clk 0:03:02]} 9. Qf3 {[%clk 0:03:00]}  Nbd7 {[%clk 0:03:02]} 10. O-O-O {[%clk 0:03:00]}  Qc7 {[%clk 0:03:03]} 11. g4 {[%clk 0:02:49]}  g5 {[%clk 0:03:00]} 12. fxg5 {[%clk 0:02:47]}  Ne5 {[%clk 0:02:46]} 13. Qe2 {[%clk 0:02:47]}  Nfxg4 {[%clk 0:02:32]} 14. h3 {[%clk 0:02:47]}  hxg5 {[%clk 0:02:30]} 15. Bg3 {[%clk 0:02:47]}  Nf6 {[%clk 0:02:27]} 16. Bg2 {[%clk 0:02:45]}  Bd7 {[%clk 0:02:19]} 17. Nf3 {[%clk 0:02:44]}  Nh5 {[%clk 0:02:16]} 18. Bh2 {[%clk 0:02:43]}  Nf4 {[%clk 0:02:08]} 19. Qd2 {[%clk 0:02:38]}  Neg6 {[%clk 0:02:02]} 20. Rhg1 {[%clk 0:02:20]}  O-O-O {[%clk 0:01:43]} 21. Bf1 {[%clk 0:02:19]}  Qc5 {[%clk 0:01:32]} 22. Rg3 {[%clk 0:02:05]}  Bc6 {[%clk 0:01:07]} 23. Bg1 {[%clk 0:02:03]}  Qa5 {[%clk 0:01:05]} 24. Bd4 {[%clk 0:01:57]}  Rh5 {[%clk 0:00:58]} 25. Kb1 {[%clk 0:01:55]}  Ne5 {[%clk 0:00:46]} 26. Qf2 {[%clk 0:01:47]}  Kc7 {[%clk 0:00:27]} 27. Nd2 {[%clk 0:01:26]}  f5 {[%clk 0:00:03]} 28. Nb3 {[%clk 0:01:25]}  Qb4 {[%clk 0:00:02]} 29. a3 {[%clk 0:01:25]}  Qxb3 {[%clk 0:00:01]} 30. cxb3 {[%clk 0:01:25]}  fxe4 {[%clk 0:00:01]} 31. Bb6+ {[%clk 0:01:25]}  Kc8 {[%clk 0:00:01]} 32. Bxd8 {[%clk 0:01:25]}  Bxd8 {[%clk 0:00:02]} 33. Re3 {[%clk 0:01:22]}  d5 {[%clk 0:00:01]} 34. b4 {[%clk 0:01:20]}  Bb6 {[%clk 0:00:02]} 35. Qe1 {[%clk 0:01:18]}  Bxe3 {[%clk 0:00:01]} 36. Qxe3 {[%clk 0:01:19]} 1-0


[Site "https://www.chess.com"]